bitfinex-derivatives/quotes_BNBF0:USTF0_20250401
["timestamp","ask_amount","ask_price","bid_price","bid_amount"]
[1743503995174,1.38126379,612.34,611.79,0.60210184]
[1743503995368,1.38126379,612.34,611.8,0.27519228]
[1743503997073,1.097,612.34,611.8,0.27519228]
[1743503997467,1.097,612.34,611.8,0.60209649]
[1743503997672,1.097,612.34,611.81,0.60209115]
[1743503997872,1.097,612.34,611.82,0.27519228]
[1743503998269,1.097,612.34,611.83,0.32688818]
[1743503998470,1.097,612.34,611.84,0.27519228]
[1743503998674,1.097,612.34,611.85,0.3268775]
[1743503998868,1.097,612.34,611.86,0.27519228]
[1743503999072,1.097,612.34,611.87,0.32686681]
[1743503999274,1.097,612.34,611.88,0.27519228]
[1743503999470,1.097,612.34,611.89,0.32685613]
[1743503999669,1.097,612.34,611.9,0.27519228]
[1743504003184,1.097,612.34,611.89,0.32685613]
[1743504003382,1.097,612.34,611.9,0.2750975]
[1743504004885,1.097,612.34,611.91,0.32684545]
[1743504005183,1.097,612.34,611.92,0.2750975]
[1743504006287,1.097,612.34,611.93,0.27505683]
[1743504006480,1.097,612.34,611.94,0.27502864]
[1743504006679,1.097,612.34,611.92,0.27502864]
[1743504006881,1.097,612.34,611.93,0.27502864]
[1743504007184,1.097,612.34,611.92,0.27502864]
[1743504007383,1.097,612.34,611.93,0.6018634]
[1743504007585,1.097,612.34,611.94,0.60185806]
[1743504007880,1.097,612.34,611.95,0.60185272]
[1743504008184,1.097,612.34,611.96,0.60183616]
[1743504008386,1.097,612.34,611.97,0.27501742]
[1743504008580,1.097,612.34,611.98,0.32680806]
[1743504008780,1.097,612.34,611.99,0.27501742]
[1743504008985,1.097,612.34,612.0,0.32679738]
[1743504009186,1.097,612.34,612.01,0.27501742]
[1743504009486,1.097,612.34,612.02,0.3267867]
[1743504009684,1.097,612.34,612.03,0.27501742]
[1743504009886,1.097,612.34,612.04,0.32677602]
[1743504010081,0.352,612.48,612.05,0.27501742]
[1743504010287,0.352,612.48,612.06,0.32676534]
[1743504010586,0.352,612.48,612.07,0.27501742]
[1743504010778,0.352,612.48,612.08,0.32675467]
[1743504010984,0.352,612.48,612.09,0.27501742]
[1743504011279,0.352,612.48,612.1,0.32674399]
[1743504011485,0.352,612.48,612.11,0.27501742]
[1743504011686,0.352,612.48,612.12,0.32673332]
[1743504011885,0.352,612.48,612.13,0.27501742]
[1743504012187,0.352,612.48,612.14,0.32672264]
[1743504012380,0.352,612.48,612.15,0.27501742]
[1743504012578,0.352,612.48,612.16,0.32671197]
[1743504012783,0.352,612.48,612.17,0.27501742]
[1743504019090,0.352,612.48,612.18,0.27500664]
[1743504019387,0.352,612.48,612.19,0.27500664]
[1743504019688,0.352,612.48,612.2,0.27500664]
[1743504019888,0.352,612.48,612.17,0.27500664]
[1743504020081,0.352,612.48,612.18,0.27500664]
[1743504020280,0.352,612.48,612.17,0.27500664]
[1743504020487,0.352,612.48,612.18,0.27500664]
[1743504020682,1.067,612.65,612.19,0.27500664]
[1743504020885,1.067,612.65,612.2,0.27500664]
[1743504021085,1.067,612.65,612.21,0.27500664]
[1743504021286,1.067,612.65,612.22,0.27500664]
[1743504021482,1.067,612.65,612.17,0.27500664]
[1743504022189,1.067,612.65,612.18,0.27500229]
[1743504022385,1.067,612.65,612.17,0.27500229]
[1743504022590,1.067,612.65,612.18,0.32670129]
[1743504023486,1.067,612.65,612.19,0.27496919]
[1743504025394,1.067,612.65,612.2,0.27499704]
[1743504025597,1.067,612.65,612.21,0.27499704]
[1743504025797,1.067,612.65,612.22,0.27499704]
[1743504025996,1.067,612.65,612.23,0.27499704]
[1743504026194,1.067,612.65,612.24,0.27499704]
[1743504026398,1.067,612.65,612.25,0.27499704]
[1743504026696,1.067,612.65,612.26,0.27499704]
[1743504026896,1.067,612.65,612.27,0.27499704]
[1743504027101,1.067,612.65,612.19,0.27499704]
[1743504027299,1.067,612.65,612.2,0.27499704]
[1743504027500,1.067,612.65,612.19,0.27499704]
[1743504027700,1.067,612.65,612.2,0.27499704]
[1743504027900,1.067,612.65,612.19,0.27499704]
[1743504028103,1.067,612.65,612.2,0.27499704]
[1743504028303,1.067,612.65,612.19,0.27499704]
[1743504028497,1.067,612.65,612.2,0.27499704]
[1743504028700,1.067,612.65,612.19,0.27499704]
[1743504028895,1.067,612.65,612.18,0.32670129]
[1743504029100,1.067,612.65,612.19,0.27500178]
[1743504030604,1.067,612.65,612.18,0.32670129]
[1743504030605,0.28411178,612.64,612.18,0.32670129]
[1743504033102,1.067,612.65,612.18,0.32670129]
[1743504033306,1.067,612.65,612.19,0.27506354]
[1743504033507,0.28416978,612.63,612.19,0.27506354]
[1743504036206,1.067,612.65,612.19,0.27506354]
[1743504036607,0.28412222,612.62,612.19,0.27506354]
[1743504038407,0.28412222,612.62,612.18,0.32670129]
[1743504039007,0.28412222,612.62,611.8,1.194]
[1743504039207,0.28412222,612.62,611.81,0.60203631]
[1743504039403,0.28412222,612.62,611.82,0.32689353]
[1743504039708,0.28412222,612.62,611.83,0.27513744]
[1743504040407,0.28412222,612.62,611.84,0.32688284]
[1743504040608,0.28412222,612.62,611.85,0.27513744]
[1743504040801,0.28412222,612.62,611.86,0.32687216]
[1743504041005,0.28412222,612.62,611.87,0.27513744]
[1743504041202,0.28412222,612.62,611.88,0.32686147]
[1743504041401,0.28412222,612.62,611.89,0.27513744]
[1743504041708,0.28412222,612.62,611.89,0.60199357]
[1743504041908,0.28412222,612.62,611.9,0.27513744]
[1743504042108,0.352,612.86,611.9,0.27513744]
[1743504042510,0.28415702,612.85,611.89,0.32685613]
[1743504042710,0.28415702,612.85,611.9,0.27512029]
[1743504042908,0.28415702,612.85,611.91,0.32684545]
[1743504043108,0.28415702,612.85,611.92,0.27512029]
[1743504043309,0.28415702,612.85,611.93,0.32683476]
[1743504043604,0.28415702,612.85,611.94,0.27512029]
[1743504043809,0.28415702,612.85,611.95,0.32682408]
[1743504044011,0.28415702,612.85,611.96,0.27512029]
[1743504044211,0.28415702,612.85,611.97,0.3268134]
[1743504044412,0.28415702,612.85,611.98,0.27512029]
[1743504044711,1.092,612.84,611.99,0.32680272]
[1743504044911,1.092,612.84,612.0,0.27512029]
[1743504045112,1.092,612.84,612.01,0.32679204]
[1743504045311,1.092,612.84,612.02,0.27512029]
[1743504045614,0.28411642,612.83,612.03,0.32678136]
[1743504045912,0.28411642,612.83,612.04,0.27512029]
[1743504046109,0.28411642,612.83,612.05,0.32677068]
[1743504046315,0.28411642,612.83,612.06,0.27512029]
[1743504046613,0.28411642,612.83,612.07,0.32676001]
[1743504046811,0.28411642,612.83,612.08,0.27512029]
[1743504047210,0.28411642,612.83,612.09,0.27498702]
[1743504047410,0.28411642,612.83,612.08,0.27498702]
[1743504047607,0.28411642,612.83,612.09,0.27498702]
[1743504047914,1.51311642,612.83,612.1,0.60173101]
[1743504048111,1.229,612.83,612.11,0.27498702]
[1743504048415,0.28407931,612.82,612.12,0.27498702]
[1743504048607,0.28407931,612.82,612.13,0.601715]
[1743504048812,0.28407931,612.82,612.14,0.27498702]
[1743504052618,0.63607931,612.82,612.14,0.27498702]
[1743504056815,0.63607931,612.82,612.13,0.32672798]
[1743504057019,0.352,612.82,612.13,0.32672798]
[1743504057419,0.28416978,612.81,612.13,0.32672798]
[1743504057718,0.28416978,612.81,612.14,0.2750841]
[1743504058719,0.28416978,612.81,612.13,0.32672798]
[1743504059015,0.28416978,612.81,612.14,0.27506074]
[1743504059617,0.28416978,612.81,611.8,1.194]
[1743504059822,0.28416978,612.81,611.81,0.27503352]
[1743504060223,0.352,612.82,611.81,0.27503352]
[1743504060425,0.2841431,612.8,611.81,0.27503352]
[1743504062321,0.2841431,612.8,611.8,1.194]
[1743504062523,0.2841431,612.8,611.81,0.27505765]
[1743504063125,0.352,612.82,611.81,0.27505765]
[1743504063325,0.28415006,612.79,611.81,0.27505765]
[1743504063925,0.28415006,612.79,611.82,0.27510576]
[1743504064125,0.28415006,612.79,611.81,0.27510576]
[1743504064320,0.28415006,612.79,611.82,0.27510576]
[1743504064523,0.28415006,612.79,611.81,0.27510576]
[1743504064830,0.28415006,612.79,611.82,0.27510576]
[1743504065125,0.28415006,612.79,611.83,0.27510576]
[1743504065320,0.28415006,612.79,611.81,0.27510576]
[1743504065523,0.28415006,612.79,611.82,0.27510576]
[1743504065726,0.28415006,612.79,611.83,0.27510576]
[1743504065927,0.28415006,612.79,611.84,0.27510576]
[1743504066128,0.352,612.82,611.85,0.27510576]
[1743504066328,0.28415934,612.78,611.81,0.27510576]
[1743504066526,0.28415934,612.78,611.82,0.27510576]
[1743504066722,0.28415934,612.78,611.81,0.27510576]
[1743504069130,0.352,612.82,611.81,0.27510576]
[1743504070330,0.352,612.82,611.82,0.27505863]
[1743504070526,0.28414542,612.81,611.81,0.27505863]
[1743504072131,0.352,612.82,611.82,0.27505863]
[1743504072432,0.2841315,612.8,611.83,0.27505863]
[1743504072632,0.2841315,612.8,611.84,0.27505863]
[1743504072833,0.2841315,612.8,611.85,0.27505863]
[1743504073028,0.2841315,612.8,611.86,0.27505863]
[1743504073234,0.2841315,612.8,611.87,0.27505863]
[1743504073434,0.831,612.79,611.88,0.27505863]
[1743504073634,0.831,612.79,611.89,0.2750089]
[1743504073835,0.831,612.79,611.9,0.2750089]
[1743504074034,0.831,612.79,611.91,0.2750089]
[1743504074232,0.831,612.79,611.92,0.2750089]
[1743504074433,0.831,612.79,611.61,0.2750089]
[1743504074732,0.831,612.79,611.92,0.662]
[1743504074935,0.831,612.79,611.93,0.2750089]
[1743504078338,0.831,612.79,611.94,0.27505416]
[1743504078535,0.28413034,612.78,611.93,0.27505416]
[1743504078737,0.28413034,612.78,611.94,0.27505416]
[1743504079038,0.28413034,612.78,611.95,0.27505416]
[1743504079231,0.28413034,612.78,611.93,0.27505416]
[1743504079836,0.28413034,612.78,611.92,0.662]
[1743504080031,0.28413034,612.78,611.93,0.27510508]
[1743504081238,0.831,612.79,611.93,0.27510508]
[1743504081439,0.28416282,612.77,611.93,0.27510508]
[1743504082936,0.28416282,612.77,611.92,0.662]
[1743504084138,0.831,612.79,611.92,0.662]
[1743504084342,0.28416746,612.76,611.93,0.27511679]
[1743504085345,0.351,612.75,611.93,0.27511679]
[1743504087852,0.351,612.75,611.92,1.233]
[1743504088045,0.351,612.75,611.93,0.27506817]
[1743504090452,0.28414774,612.74,611.93,0.27506817]
[1743504090951,0.28414774,612.74,611.92,1.233]
[1743504091149,0.28414774,612.74,611.93,0.27504241]
[1743504091353,0.28414774,612.74,611.92,1.233]
[1743504091554,0.28414774,612.74,611.93,0.32683476]
[1743504092250,0.28414774,612.74,611.93,0.60185816]
[1743504092451,0.28414774,612.74,611.94,0.2750234]
[1743504092653,0.28414774,612.74,611.95,0.60184748]
[1743504092853,0.28414774,612.74,611.96,0.60184214]
[1743504093052,0.28414774,612.74,611.97,0.6018368]
[1743504093253,0.351,612.75,611.98,0.2750234]
[1743504093454,0.351,612.75,611.99,0.60182612]
[1743504093654,0.351,612.75,612.0,0.2750234]
[1743504093855,0.351,612.75,612.01,0.2750234]
[1743504094155,0.351,612.75,612.02,0.2750234]
[1743504094455,0.351,612.75,612.03,0.2750234]
[1743504094658,1.11509555,612.79,612.04,0.60179942]
[1743504094852,1.11509555,612.79,612.05,0.32677068]
[1743504095057,1.11509555,612.79,612.06,0.27497036]
[1743504095256,1.11509555,612.79,612.07,0.60173037]
[1743504095455,1.11509555,612.79,612.08,0.27497036]
[1743504095653,1.11509555,612.79,612.09,0.60171969]
[1743504095853,1.11509555,612.79,612.1,0.60171435]
[1743504096056,1.11509555,612.79,612.04,0.662]
[1743504096057,1.11509555,612.79,612.11,0.60170901]
[1743504096254,0.831,612.79,612.12,0.60170368]
[1743504096455,0.28407468,612.79,612.13,0.60169834]
[1743504096654,0.28407468,612.79,612.04,0.662]
[1743504096655,0.28407468,612.79,612.14,0.601693]
[1743504096858,0.28407468,612.79,612.15,0.60168766]
[1743504097055,0.28407468,612.79,612.16,0.60168233]
[1743504097259,0.28407468,612.79,612.17,0.60167699]
[1743504097460,0.28407468,612.79,612.18,0.60167165]
[1743504097656,0.28407468,612.79,612.19,0.27497036]
[1743504098258,0.28407468,612.79,612.2,0.32669062]
[1743504098458,0.28407468,612.79,612.21,0.27497036]
[1743504098662,0.28407468,612.79,612.22,0.32667995]
[1743504098862,0.28407468,612.79,612.23,0.27497036]
[1743504099260,2.46891147,614.11,612.23,0.27497036]
[1743504099455,0.28389855,612.83,612.23,0.27497036]
[1743504099858,0.32568516,614.09,612.23,0.27497036]
[1743504100056,0.29973098,614.08,612.23,0.27497036]
[1743504100361,0.32570107,614.06,612.23,0.27497036]
[1743504100561,0.29973098,614.05,612.23,0.27497036]
[1743504100758,0.32571698,614.03,612.23,0.27497036]
[1743504100962,0.29973098,614.02,612.24,0.32666928]
[1743504101162,0.32573289,614.0,612.25,0.27497036]
[1743504101363,0.29973098,613.99,612.25,0.27497036]
[1743504101559,0.32574881,613.97,612.25,0.27497036]
[1743504101764,0.29973098,613.96,612.25,0.27497036]
[1743504102066,0.32576473,613.94,612.25,0.27497036]
[1743504102267,0.29973098,613.93,612.25,0.27497036]
[1743504102564,0.32578065,613.91,612.25,0.27497036]
[1743504102763,0.29973098,613.9,612.25,0.27497036]
[1743504102963,0.32579657,613.88,612.25,0.27497036]
[1743504103263,0.29973098,613.87,612.25,0.27497036]
[1743504103457,0.32581249,613.85,612.25,0.27497036]
[1743504103662,0.29973098,613.84,612.25,0.27497036]
[1743504103862,0.32582841,613.82,612.25,0.27497036]
[1743504104163,0.29973098,613.81,612.25,0.27497036]
[1743504104361,0.32584434,613.79,612.25,0.27497036]
[1743504104561,0.29973098,613.78,612.25,0.27497036]
[1743504104761,0.32586027,613.76,612.25,0.27497036]
[1743504104962,0.29973098,613.75,612.25,0.27497036]
[1743504105162,0.32587619,613.73,612.25,0.27497036]
[1743504105357,0.29973098,613.72,612.25,0.27497036]
[1743504105561,0.32589212,613.7,612.25,0.27497036]
[1743504105765,0.29973098,613.69,612.25,0.27497036]
[1743504106064,0.32590806,613.67,612.25,0.27497036]
[1743504106263,0.29973098,613.66,612.25,0.27497036]
[1743504106959,0.32592399,613.64,612.25,0.27497036]
[1743504107164,0.29973098,613.63,612.25,0.27497036]
[1743504107358,0.29980399,613.62,612.26,0.27503034]
[1743504107562,0.62574391,613.61,612.27,0.27503034]
[1743504107763,0.32595055,613.59,612.28,0.27503034]
[1743504107959,0.32595055,613.59,612.25,0.27503034]
[1743504108157,0.32595055,613.59,612.26,0.27503034]
[1743504108461,0.2839692,613.58,612.27,0.27503034]
[1743504108657,0.32596649,613.56,612.25,0.27503034]
[1743504108860,0.32596649,613.56,612.26,0.27503034]
[1743504109055,0.32596649,613.56,612.24,0.32666928]
[1743504109056,0.32596649,613.56,612.25,0.27503034]
[1743504109263,0.32596649,613.56,612.26,0.27503034]
[1743504109466,0.32596649,613.56,612.25,0.27503034]
[1743504109666,0.32596649,613.56,612.26,0.27503034]
[1743504109965,0.32596649,613.56,612.24,0.32666928]
[1743504109966,0.32596649,613.56,612.27,0.27503034]
[1743504110166,0.32596649,613.56,612.25,0.27503034]
[1743504110466,0.32596649,613.56,612.26,0.27503034]
[1743504110668,0.29978736,613.55,612.27,0.27503034]
[1743504110867,0.32597711,613.54,612.28,0.27503034]
[1743504111067,0.29978736,613.53,612.29,0.27503034]
[1743504111368,0.29978736,613.53,612.3,0.27503034]
[1743504111369,0.32598774,613.52,612.3,0.27503034]
[1743504111568,0.29978736,613.51,612.25,0.27503034]
[1743504111767,0.32599837,613.5,612.26,0.27503034]
[1743504112163,0.29977474,613.49,612.27,0.27503034]
[1743504112366,0.32600899,613.48,612.25,0.27503034]
[1743504112562,0.32600899,613.48,612.26,0.27503034]
[1743504112868,0.29979666,613.47,612.27,0.27503034]
[1743504113068,0.32601962,613.46,612.25,0.27503034]
[1743504113268,0.32601962,613.46,612.24,0.32666928]
[1743504113269,0.29979666,613.45,612.26,0.27503034]
[1743504113466,0.32603025,613.44,612.25,0.27503034]
[1743504113667,0.29979666,613.43,612.26,0.27503034]
[1743504113867,0.32604088,613.42,612.27,0.27503034]
[1743504114068,0.29979666,613.41,612.25,0.27503034]
[1743504114369,0.32605151,613.4,612.26,0.27503034]
[1743504114568,0.32605151,613.4,612.25,0.27503034]
[1743504114767,0.32605151,613.4,612.26,0.27503034]
[1743504115067,0.32605151,613.4,612.27,0.27503034]
[1743504115266,0.32605151,613.4,612.25,0.27503034]
[1743504115467,0.32605151,613.4,612.26,0.27503034]
[1743504115667,0.32605151,613.4,612.24,0.32666928]
[1743504116767,0.32605151,613.4,612.25,0.27502491]
[1743504116967,0.29979848,613.39,612.25,0.27502491]
[1743504117168,0.32605151,613.4,612.25,0.27502491]
[1743504117569,0.28399006,613.38,612.25,0.27502491]
[1743504120970,0.28399006,613.38,612.24,0.32666928]
[1743504121270,0.28399006,613.38,612.25,0.27498317]
[1743504122469,0.28399006,613.38,612.26,0.27498265]
[1743504122769,0.28399006,613.38,612.27,0.27498265]
[1743504122969,0.28399006,613.38,612.28,0.27498265]
[1743504123170,0.28399006,613.38,612.25,0.27498265]
[1743504123361,0.28399006,613.38,612.24,0.32666928]
[1743504123362,0.28399006,613.38,612.26,0.27498265]
[1743504123563,0.28399006,613.38,612.25,0.27498265]
[1743504123770,0.28399006,613.38,612.26,0.27498265]
[1743504123968,0.28399006,613.38,612.25,0.27498265]
[1743504124169,0.28399006,613.38,612.24,0.32666928]
[1743504124170,0.28399006,613.38,612.26,0.27498265]
[1743504124369,0.28399006,613.38,612.27,0.27498265]
[1743504124569,0.28399006,613.38,612.28,0.27498265]
[1743504124772,0.28399006,613.38,612.25,0.27498265]
[1743504124968,0.28399006,613.38,612.26,0.27498265]
[1743504125166,0.28399006,613.38,612.27,0.27498265]
[1743504125370,0.28399006,613.38,612.25,0.27498265]
[1743504125570,0.28399006,613.38,612.26,0.27501127]
[1743504125768,0.28399006,613.38,612.25,0.27501127]
[1743504125969,0.28399006,613.38,612.26,0.27501127]
[1743504126272,0.32605151,613.4,612.27,0.27501127]
[1743504126572,0.28400397,613.37,612.24,0.32666928]
[1743504126767,0.28400397,613.37,612.25,0.27503179]
[1743504127171,0.28400397,613.37,612.26,0.27503251]
[1743504127466,0.32607277,613.36,612.24,0.32666928]
[1743504127667,0.32607277,613.36,612.25,0.27504864]
[1743504128871,0.32607277,613.36,612.24,0.32666928]
[1743504129772,0.28408627,613.35,612.24,0.32666928]
[1743504129968,0.32608341,613.34,612.24,0.32666928]
[1743504132173,0.32608341,613.34,611.86,0.855]
[1743504132372,0.32608341,613.34,611.87,0.27514249]
[1743504132572,0.28411178,613.33,611.87,0.27514249]
[1743504132873,0.32609404,613.32,611.87,0.27514249]
[1743504133772,0.32609404,613.32,611.88,0.27514778]
[1743504133972,0.32609404,613.32,611.87,0.27514778]
[1743504134174,0.29993824,613.31,611.88,0.27514778]
[1743504134373,0.29993824,613.31,611.87,0.27514778]
[1743504134574,0.29993824,613.31,611.88,0.27514778]
[1743504134770,0.32610999,613.29,611.87,0.27514778]
[1743504134973,0.29993824,613.28,611.88,0.27514778]
[1743504135174,0.29993824,613.28,611.89,0.27514778]
[1743504135375,0.32612594,613.26,611.9,0.27514778]
[1743504135576,0.29993824,613.25,611.91,0.27514778]
[1743504135774,0.32613658,613.24,611.87,0.27514778]
[1743504135975,0.32613658,613.24,611.88,0.27514778]
[1743504136174,0.32613658,613.24,611.87,0.27514778]
[1743504136471,0.32613658,613.24,611.88,0.27514778]
[1743504136671,0.32613658,613.24,611.87,0.27514778]
[1743504136868,0.32613658,613.24,611.88,0.27514778]
[1743504137068,0.32613658,613.24,611.89,0.27514778]
[1743504137272,0.32613658,613.24,611.9,0.27514778]
[1743504137472,0.32613658,613.24,611.91,0.27514778]
[1743504137769,0.32613658,613.24,611.92,0.27514778]
[1743504137969,0.32613658,613.24,611.87,0.27510247]
[1743504138173,0.32613658,613.24,611.88,0.27510247]
[1743504138369,0.32613658,613.24,611.89,0.27510247]
[1743504138575,0.32613658,613.24,611.9,0.27510247]
[1743504138875,0.32613658,613.24,611.91,0.60194792]
[1743504139069,0.32613658,613.24,611.92,0.60194257]
[1743504139273,0.32613658,613.24,611.93,0.60193723]
[1743504139472,0.32613658,613.24,611.94,0.60193189]
[1743504139674,0.32613658,613.24,611.95,0.60192655]
[1743504139870,0.32613658,613.24,611.96,0.2750273]
[1743504140074,0.32613658,613.24,611.97,0.3268134]
[1743504140280,0.32613658,613.24,611.98,0.2750273]
[1743504140478,0.32613658,613.24,611.99,0.32680272]
[1743504140772,0.32613658,613.24,612.0,0.2750273]
[1743504140977,0.32613658,613.24,612.01,0.32679204]
[1743504141176,0.32613658,613.24,612.02,0.2750273]
[1743504141374,0.32613658,613.24,612.03,0.32678136]
[1743504141571,0.28404685,613.23,612.03,0.32678136]
[1743504141771,0.28404685,613.23,612.04,0.2750273]
[1743504142277,0.28404685,613.23,612.05,0.32677068]
[1743504142478,0.28404685,613.23,612.06,0.2750273]
[1743504142971,0.28404685,613.23,612.07,0.32676001]
[1743504143171,0.28404685,613.23,612.08,0.2750273]
[1743504143380,0.28404685,613.23,612.09,0.32674933]
[1743504143570,0.28404685,613.23,612.1,0.2750273]
[1743504143771,0.28404685,613.23,612.11,0.32673865]
[1743504143976,0.28404685,613.23,612.12,0.2750273]
[1743504144279,0.32613658,613.24,612.12,0.2750273]
[1743504144481,0.28405149,613.22,612.12,0.2750273]
[1743504147180,0.32613658,613.24,612.12,0.2750273]
[1743504147580,0.28405149,613.21,612.12,0.2750273]
[1743504148881,0.28405149,613.21,612.12,0.60176062]
[1743504149082,0.28405149,613.21,612.13,0.60175528]
[1743504149274,0.28405149,613.21,612.14,0.60174994]
[1743504149481,0.28405149,613.21,612.15,0.6017446]
[1743504149782,0.28405149,613.21,612.16,0.60173927]
[1743504149978,0.28405149,613.21,612.17,0.2750273]
[1743504150181,0.32613658,613.24,612.17,0.2750273]
[1743504151583,0.28402135,613.23,612.17,0.2750273]
[1743504153383,0.32613658,613.24,612.17,0.2750273]
[1743504153583,0.28402715,613.22,612.17,0.2750273]
[1743504153983,0.28402715,613.22,612.18,0.27501875]
[1743504154181,0.28402715,613.22,612.16,0.32671197]
[1743504154584,0.28402715,613.22,612.17,0.27502042]
[1743504156186,0.32613658,613.24,612.16,0.32671197]
[1743504156385,0.28402251,613.21,612.16,0.32671197]
[1743504156584,0.28402251,613.21,612.17,0.27499099]
[1743504156880,0.28402251,613.21,612.18,0.32670129]
[1743504157281,0.28402251,613.21,612.19,0.27499099]
[1743504158079,0.28402251,613.21,612.2,0.32669062]
[1743504158279,0.28402251,613.21,612.21,0.27499099]
[1743504159587,0.28402251,613.21,612.22,0.32667995]
[1743504159785,0.28402251,613.21,612.23,0.27499099]
[1743504159985,0.28402251,613.21,612.24,0.32666928]
[1743504160182,0.28402251,613.21,612.25,0.27499099]
[1743504162287,0.953,613.35,612.25,0.27499099]
[1743504162493,0.28397963,613.2,612.25,0.27499099]
[1743504162886,0.953,613.35,612.25,0.27499099]
[1743504163087,0.28397963,613.19,612.25,0.27499099]
[1743504163386,0.953,613.35,612.25,0.27499099]
[1743504163593,0.953,613.35,612.26,0.3266586]
[1743504163783,0.28397268,613.18,612.27,0.27499099]
[1743504163982,0.953,613.35,612.28,0.32664793]
[1743504164186,0.953,613.35,612.29,0.27499099]
[1743504164386,0.28395646,613.17,612.3,0.32663726]
[1743504164682,0.953,613.35,612.31,0.27499099]
[1743504164889,0.2839553,613.16,612.32,0.60154275]
[1743504165087,0.2839553,613.16,612.33,0.27491615]
[1743504165282,0.352,613.36,612.33,0.27491615]
[1743504165583,0.28395067,613.15,612.33,0.27491615]
[1743504165789,0.352,613.36,612.33,0.27491615]
[1743504166188,0.28395067,613.14,612.33,0.27491615]
[1743504166490,0.352,613.36,612.34,0.27491131]
[1743504166787,0.28395067,613.13,612.35,0.27491131]
[1743504166988,0.28395067,613.13,612.33,0.27491131]
[1743504167187,0.352,613.36,612.34,0.27491131]
[1743504167385,0.28395067,613.12,612.33,0.27491131]
[1743504167688,0.936,613.35,612.34,0.27491131]
[1743504167991,0.28395067,613.11,612.35,0.27491131]
[1743504168184,0.28395067,613.11,612.36,0.27491131]
[1743504168386,0.936,613.35,612.33,0.27491131]
[1743504168584,0.936,613.35,612.34,0.60152724]
[1743504168783,0.936,613.35,612.35,0.6015219]
[1743504168983,0.936,613.35,612.36,0.60151657]
[1743504169186,0.936,613.35,612.37,0.27491131]
[1743504169489,0.28393793,613.34,612.37,0.27491131]
[1743504171186,0.28393793,613.34,612.36,0.32660526]
[1743504171187,0.28393793,613.34,612.38,0.27488497]
[1743504171489,0.28393793,613.34,612.39,0.27488497]
[1743504171692,0.28393793,613.34,612.4,0.27488497]
[1743504174392,0.936,613.35,612.41,0.27487971]
[1743504174593,0.28393445,613.33,612.4,0.27487971]
[1743504175794,0.28393445,613.33,612.39,0.977]
[1743504175995,0.28393445,613.33,612.4,0.27487771]
[1743504177393,0.936,613.35,612.4,0.27487771]
[1743504177594,0.28393445,613.32,612.4,0.27487771]
[1743504180200,0.936,613.35,612.4,0.27487771]
[1743504180700,0.936,613.35,612.39,0.977]
[1743504180701,0.28396689,613.31,612.41,0.2749565]
[1743504180896,0.28396689,613.31,612.4,0.2749565]
[1743504181105,0.28396689,613.31,612.41,0.2749565]
[1743504181405,0.28396689,613.31,612.42,0.2749565]
[1743504181605,0.28396689,613.31,612.4,0.2749565]
[1743504181805,0.28396689,613.31,612.41,0.2749565]
[1743504182001,0.28396689,613.31,612.42,0.2749565]
[1743504182206,0.28396689,613.31,612.43,0.2749565]
[1743504182401,0.28396689,613.31,612.39,0.977]
[1743504182402,0.28396689,613.31,612.4,0.2749565]
[1743504182596,0.28396689,613.31,612.41,0.2749565]
[1743504182798,0.28396689,613.31,612.4,0.2749565]
[1743504183097,0.28396689,613.31,612.39,0.977]
[1743504183304,0.28396689,613.31,612.4,1.27598055]
[1743504183499,0.28396689,613.31,612.41,0.27498055]
[1743504184302,0.28396689,613.31,612.42,0.27500548]
[1743504184506,0.28396689,613.31,612.43,0.27500548]
[1743504184705,0.28396689,613.31,612.41,0.635]
[1743504184905,0.28396689,613.31,612.42,0.27500693]
[1743504185507,0.352,613.3,612.42,0.27500693]
[1743504186314,0.352,613.3,612.41,0.635]
[1743504186511,0.28399701,613.29,612.42,0.27500167]
[1743504187011,0.28399701,613.29,612.41,0.635]
[1743504188105,0.28399701,613.29,612.42,0.27500018]
[1743504189012,0.28399701,613.29,612.41,0.635]
[1743504193419,0.32612063,613.27,612.41,0.635]
[1743504193719,0.29992524,613.26,612.41,0.635]
[1743504194013,0.32613658,613.24,612.41,0.635]
[1743504194412,0.29992524,613.23,612.41,0.635]
[1743504194616,1.00692524,613.23,612.41,0.635]
[1743504194811,0.32615254,613.21,612.41,0.635]
[1743504195118,0.29992524,613.2,612.41,0.635]
[1743504195319,0.32616317,613.19,612.41,0.635]
[1743504195518,0.61027727,613.19,612.41,0.635]
[1743504198213,0.32616317,613.19,612.41,0.635]
[1743504198421,0.28411526,613.18,612.41,0.635]